[Event "Late-Titled-Tuesday-Blitz-April-23-2024"]
[Site "Chess.com"]
[Date "2024.04.23"]
[Round "6"]
[White "zsizsi99"]
[Black "Skatchkov_V"]
[Result "1/2-1/2"]
[WhiteElo "2493"]
[BlackElo "2664"]
[TimeControl "180+1"]
[EndTime "15:08:50 PDT"]
[Termination "Game drawn - insufficient material"]

1. e4 {[%clk 0:02:57]} 1... e5 {[%clk 0:02:58.4]} 2. Nf3 {[%clk 0:02:56.4]} 2...
d5 {[%clk 0:02:54.7]} 3. exd5 {[%clk 0:02:51]} 3... e4 {[%clk 0:02:55]} 4. Qe2
{[%clk 0:02:48.9]} 4... Nf6 {[%clk 0:02:54.7]} 5. Nc3 {[%clk 0:02:48.6]} 5...
Be7 {[%clk 0:02:55]} 6. Ng5 {[%clk 0:02:43.5]} 6... O-O {[%clk 0:02:54.4]} 7.
Ngxe4 {[%clk 0:02:40.5]} 7... Re8 {[%clk 0:02:54]} 8. d3 {[%clk 0:02:39.7]} 8...
Nxd5 {[%clk 0:02:51.2]} 9. Nxd5 {[%clk 0:02:37.3]} 9... Qxd5 {[%clk 0:02:52.1]}
10. Nc3 {[%clk 0:02:36.5]} 10... Qc6 {[%clk 0:02:49.9]} 11. Be3 {[%clk 0:02:36]}
11... Bb4 {[%clk 0:02:38.2]} 12. Qd2 {[%clk 0:02:33.1]} 12... Bg4 {[%clk
0:02:38.6]} 13. a3 {[%clk 0:02:19.5]} 13... Ba5 {[%clk 0:02:38.2]} 14. h3 {[%clk
0:01:53.5]} 14... Bh5 {[%clk 0:02:36.9]} 15. Rg1 {[%clk 0:01:53.6]} 15... Na6
{[%clk 0:02:12.7]} 16. g4 {[%clk 0:01:50.6]} 16... Bg6 {[%clk 0:02:13.1]} 17.
Bg2 {[%clk 0:01:49.5]} 17... Qf6 {[%clk 0:02:13.7]} 18. O-O-O {[%clk 0:01:33]}
18... b5 {[%clk 0:02:01.5]} 19. Bxa8 {[%clk 0:01:24.2]} 19... Rxa8 {[%clk
0:02:01.2]} 20. Kb1 {[%clk 0:01:09.3]} 20... Rb8 {[%clk 0:01:56.8]} 21. Nd5
{[%clk 0:01:07.7]} 21... Bxd2 {[%clk 0:01:31.3]} 22. Nxf6+ {[%clk 0:01:07.7]}
22... gxf6 {[%clk 0:01:32.2]} 23. Rxd2 {[%clk 0:01:08]} 23... c5 {[%clk
0:01:31.5]} 24. f4 {[%clk 0:01:06.5]} 24... h5 {[%clk 0:01:27.4]} 25. f5 {[%clk
0:01:05.9]} 25... Bh7 {[%clk 0:01:27.5]} 26. Bh6 {[%clk 0:00:59.8]} 26... Kh8
{[%clk 0:01:24.2]} 27. Re2 {[%clk 0:00:56.4]} 27... b4 {[%clk 0:01:23.1]} 28. a4
{[%clk 0:00:56.1]} 28... b3 {[%clk 0:01:22.9]} 29. c3 {[%clk 0:00:56.1]} 29...
Nc7 {[%clk 0:01:22.2]} 30. Re7 {[%clk 0:00:52.9]} 30... Nd5 {[%clk 0:01:22.3]}
31. Rxf7 {[%clk 0:00:53.3]} 31... Re8 {[%clk 0:01:21.8]} 32. c4 {[%clk
0:00:40.2]} 32... Nb4 {[%clk 0:01:19.7]} 33. Rxf6 {[%clk 0:00:36]} 33... Nxd3
{[%clk 0:01:03.1]} 34. gxh5 {[%clk 0:00:36.4]} 34... a5 {[%clk 0:00:34.9]} 35.
Re6 {[%clk 0:00:14.2]} 35... Rxe6 {[%clk 0:00:17.6]} 36. fxe6 {[%clk 0:00:14.3]}
36... Nf4+ {[%clk 0:00:17.7]} 37. Ka1 {[%clk 0:00:10.5]} 37... Nxe6 {[%clk
0:00:18]} 38. Bd2 {[%clk 0:00:07.9]} 38... Bd3 {[%clk 0:00:16.4]} 39. Bxa5
{[%clk 0:00:04.8]} 39... Kh7 {[%clk 0:00:16.9]} 40. Bc3 {[%clk 0:00:04.4]} 40...
Bxc4 {[%clk 0:00:16.2]} 41. Kb1 {[%clk 0:00:04.3]} 41... Nf4 {[%clk 0:00:14.6]}
42. Rg4 {[%clk 0:00:02.9]} 42... Bd3+ {[%clk 0:00:14.9]} 43. Kc1 {[%clk
0:00:03.4]} 43... Nd5 {[%clk 0:00:14.6]} 44. Kd2 {[%clk 0:00:04.1]} 44... c4
{[%clk 0:00:15.5]} 45. Rd4 {[%clk 0:00:03.9]} 45... Nb6 {[%clk 0:00:14.5]} 46.
Rxd3 {[%clk 0:00:04.7]} 46... cxd3 {[%clk 0:00:14.5]} 47. Kxd3 {[%clk
0:00:05.3]} 47... Nxa4 {[%clk 0:00:15.1]} 48. Kc4 {[%clk 0:00:06]} 48... Kh6
{[%clk 0:00:13.7]} 49. Kxb3 {[%clk 0:00:06.6]} 49... Nb6 {[%clk 0:00:11]} 50.
Kb4 {[%clk 0:00:06.7]} 50... Kxh5 {[%clk 0:00:11.5]} 51. Kc5 {[%clk 0:00:07.4]}
51... Na4+ {[%clk 0:00:11.2]} 52. Kb4 {[%clk 0:00:06.4]} 52... Nxb2 {[%clk
0:00:12.1]} 53. Bxb2 {[%clk 0:00:06.4]} 53... Kh4 {[%clk 0:00:13]} 54. Be5
{[%clk 0:00:06.9]} 54... Kxh3 {[%clk 0:00:13.9]} 1/2-1/2

[Event "Late-Titled-Tuesday-Blitz-April-23-2024"]
[Site "Chess.com"]
[Date "2024.04.23"]
[Round "6"]
[White "chessdjw"]
[Black "Evan_Attaker"]
[Result "0-1"]
[WhiteElo "2793"]
[BlackElo "2614"]
[TimeControl "180+1"]
[EndTime "15:08:51 PDT"]
[Termination "Evan_Attaker won on time"]

1. d4 {[%clk 0:03:00.9]} 1... c5 {[%clk 0:02:58.4]} 2. d5 {[%clk 0:02:58.4]}
2... g6 {[%clk 0:02:57.8]} 3. e4 {[%clk 0:02:58.1]} 3... Bg7 {[%clk 0:02:57.6]}
4. Nc3 {[%clk 0:02:57.5]} 4... d6 {[%clk 0:02:57.9]} 5. Bb5+ {[%clk 0:02:56.7]}
5... Bd7 {[%clk 0:02:57.6]} 6. a4 {[%clk 0:02:56.4]} 6... Nf6 {[%clk 0:02:58]}
7. Nf3 {[%clk 0:02:55.4]} 7... O-O {[%clk 0:02:58.5]} 8. O-O {[%clk 0:02:55.5]}
8... Na6 {[%clk 0:02:59]} 9. Re1 {[%clk 0:02:52.9]} 9... Nc7 {[%clk 0:02:59.2]}
10. Bc4 {[%clk 0:02:40.3]} 10... a6 {[%clk 0:02:58.8]} 11. a5 {[%clk 0:02:38.2]}
11... Bb5 {[%clk 0:02:51.1]} 12. Nxb5 {[%clk 0:02:33.2]} 12... axb5 {[%clk
0:02:49.1]} 13. Bf1 {[%clk 0:02:33.5]} 13... Nd7 {[%clk 0:02:39]} 14. c3 {[%clk
0:02:28.5]} 14... b6 {[%clk 0:02:38.2]} 15. a6 {[%clk 0:02:23.5]} 15... Qc8
{[%clk 0:02:29]} 16. Bg5 {[%clk 0:02:15.2]} 16... f6 {[%clk 0:02:28.9]} 17. Bd2
{[%clk 0:02:08.4]} 17... Rxa6 {[%clk 0:02:28.2]} 18. Rxa6 {[%clk 0:02:06.6]}
18... Qxa6 {[%clk 0:02:29.1]} 19. g3 {[%clk 0:02:04]} 19... Qa4 {[%clk 0:02:21]}
20. Qe2 {[%clk 0:01:49.7]} 20... Ne5 {[%clk 0:02:04.4]} 21. Nxe5 {[%clk
0:01:45.9]} 21... fxe5 {[%clk 0:02:05.3]} 22. h4 {[%clk 0:01:43.9]} 22... Qb3
{[%clk 0:01:54]} 23. Bg5 {[%clk 0:01:37.6]} 23... Bf6 {[%clk 0:01:48.2]} 24. Bh6
{[%clk 0:01:37.5]} 24... Ra8 {[%clk 0:01:44.3]} 25. h5 {[%clk 0:01:32.9]} 25...
Kf7 {[%clk 0:01:44.1]} 26. Bh3 {[%clk 0:01:28.2]} 26... Ra2 {[%clk 0:01:37.7]}
27. Bc1 {[%clk 0:01:11.7]} 27... Ra1 {[%clk 0:01:31.2]} 28. Bd7 {[%clk
0:01:08.5]} 28... b4 {[%clk 0:01:25.6]} 29. c4 {[%clk 0:01:02.3]} 29... Qa2
{[%clk 0:00:41.4]} 30. Kg2 {[%clk 0:00:57.3]} 30... b3 {[%clk 0:00:32.3]} 31.
hxg6+ {[%clk 0:00:56.2]} 31... hxg6 {[%clk 0:00:30.7]} 32. Rh1 {[%clk
0:00:56.1]} 32... Qb1 {[%clk 0:00:20.3]} 33. Qg4 {[%clk 0:00:22.7]} 33... Qxc1
{[%clk 0:00:16.3]} 34. Rxc1 {[%clk 0:00:14.3]} 34... Rxc1 {[%clk 0:00:17.2]} 35.
Qf3 {[%clk 0:00:14.1]} 35... Na6 {[%clk 0:00:15.6]} 36. Be6+ {[%clk 0:00:11.5]}
36... Kg7 {[%clk 0:00:13.6]} 37. Qxb3 {[%clk 0:00:12]} 37... Nb4 {[%clk
0:00:13.6]} 38. Qa4 {[%clk 0:00:11.9]} 38... Rxc4 {[%clk 0:00:12.1]} 39. f3
{[%clk 0:00:04.5]} 39... b5 {[%clk 0:00:06.4]} 40. Qxb5 {[%clk 0:00:04]} 40...
Rc2+ {[%clk 0:00:07.1]} 41. Kh3 {[%clk 0:00:04.6]} 41... Rxb2 {[%clk 0:00:07.4]}
42. Qe8 {[%clk 0:00:05]} 42... Nd3 {[%clk 0:00:06.7]} 43. Qg8+ {[%clk
0:00:04.8]} 43... Kh6 {[%clk 0:00:07]} 44. Qf8+ {[%clk 0:00:05.2]} 44... Bg7
{[%clk 0:00:06.8]} 45. Qxe7 {[%clk 0:00:03.7]} 45... Nf2+ {[%clk 0:00:07.4]} 46.
Kh4 {[%clk 0:00:04]} 46... Nd1 {[%clk 0:00:04]} 0-1

[Event "Late-Titled-Tuesday-Blitz-April-23-2024"]
[Site "Chess.com"]
[Date "2024.04.23"]
[Round "6"]
[White "Bykov_Egor"]
[Black "ploxoi"]
[Result "1-0"]
[WhiteElo "2607"]
[BlackElo "2417"]
[TimeControl "180+1"]
[EndTime "15:08:51 PDT"]
[Termination "Bykov_Egor won by resignation"]

1. d4 {[%clk 0:03:00.9]} 1... d5 {[%clk 0:02:58.8]} 2. c4 {[%clk 0:03:00.3]}
2... e6 {[%clk 0:02:58.2]} 3. Nf3 {[%clk 0:03:00.7]} 3... c6 {[%clk 0:02:58.2]}
4. e3 {[%clk 0:02:59.5]} 4... Nf6 {[%clk 0:02:57.8]} 5. Bd3 {[%clk 0:02:59.3]}
5... Nbd7 {[%clk 0:02:57.9]} 6. O-O {[%clk 0:02:59.3]} 6... dxc4 {[%clk
0:02:56.1]} 7. Bxc4 {[%clk 0:02:59.4]} 7... b5 {[%clk 0:02:56.8]} 8. Bd3 {[%clk
0:02:58.9]} 8... Bb7 {[%clk 0:02:57.5]} 9. Nbd2 {[%clk 0:02:46.1]} 9... a6
{[%clk 0:02:52.7]} 10. a4 {[%clk 0:02:38.3]} 10... b4 {[%clk 0:02:51.2]} 11. Nc4
{[%clk 0:02:30.2]} 11... c5 {[%clk 0:02:50.3]} 12. b3 {[%clk 0:02:19.4]} 12...
cxd4 {[%clk 0:02:49.4]} 13. Nxd4 {[%clk 0:02:18.6]} 13... Be7 {[%clk 0:02:43.8]}
14. Bb2 {[%clk 0:02:16.7]} 14... Nc5 {[%clk 0:02:43.8]} 15. Be2 {[%clk
0:02:09.6]} 15... O-O {[%clk 0:02:40.9]} 16. Bf3 {[%clk 0:02:05.9]} 16... Bxf3
{[%clk 0:02:39]} 17. Qxf3 {[%clk 0:02:06.8]} 17... Qd5 {[%clk 0:02:31.3]} 18.
Nc6 {[%clk 0:01:53.5]} 18... Rae8 {[%clk 0:02:11.2]} 19. N4a5 {[%clk 0:01:08.2]}
19... Qxf3 {[%clk 0:02:03.1]} 20. gxf3 {[%clk 0:01:09.1]} 20... Nd5 {[%clk
0:02:01.8]} 21. Rac1 {[%clk 0:01:09]} 21... Nd3 {[%clk 0:02:00.7]} 22. Rc2
{[%clk 0:01:08.5]} 22... Nxb2 {[%clk 0:02:00.2]} 23. Rxb2 {[%clk 0:01:09.1]}
23... Bf6 {[%clk 0:02:00.8]} 24. Rd2 {[%clk 0:01:04.5]} 24... Rc8 {[%clk
0:01:57.6]} 25. Rc1 {[%clk 0:00:57.8]} 25... Bc3 {[%clk 0:01:53.4]} 26. Rd3
{[%clk 0:00:57.1]} 26... Rc7 {[%clk 0:01:51.2]} 27. Rcd1 {[%clk 0:00:34.4]}
27... Bf6 {[%clk 0:01:41.5]} 28. e4 {[%clk 0:00:29.3]} 28... Nc3 {[%clk
0:01:30.7]} 29. Rd7 {[%clk 0:00:26.5]} 29... Rfc8 {[%clk 0:01:15.3]} 30. Rxc7
{[%clk 0:00:24.5]} 30... Rxc7 {[%clk 0:01:15.5]} 31. Rd3 {[%clk 0:00:23.6]}
31... h6 {[%clk 0:01:12.8]} 32. e5 {[%clk 0:00:20.2]} 32... Ne2+ {[%clk
0:01:12.9]} 33. Kf1 {[%clk 0:00:20]} 33... Nf4 {[%clk 0:01:12.8]} 34. Rd1 {[%clk
0:00:18.7]} 34... Bg5 {[%clk 0:01:09.6]} 35. Ke1 {[%clk 0:00:18.1]} 35... Nd5
{[%clk 0:01:08.5]} 36. Rd4 {[%clk 0:00:17.7]} 36... Bc1 {[%clk 0:00:48.6]} 37.
Kd1 {[%clk 0:00:16.5]} 37... Bb2 {[%clk 0:00:48.6]} 38. Rc4 {[%clk 0:00:15.9]}
38... Bc3 {[%clk 0:00:43.1]} 39. Kc2 {[%clk 0:00:16.4]} 39... Kh7 {[%clk
0:00:42.4]} 40. Nb8 {[%clk 0:00:14.5]} 40... Bxe5 {[%clk 0:00:39]} 41. Nxa6
{[%clk 0:00:14.4]} 41... Ra7 {[%clk 0:00:38.5]} 42. Nc6 {[%clk 0:00:11.5]} 42...
Rxa6 {[%clk 0:00:33.7]} 43. Nxe5 {[%clk 0:00:12.1]} 43... f6 {[%clk 0:00:32]}
44. Nd3 {[%clk 0:00:12.2]} 44... Rb6 {[%clk 0:00:30.5]} 45. Rc5 {[%clk
0:00:09.7]} 45... Kg6 {[%clk 0:00:20.1]} 46. Nb2 {[%clk 0:00:08.8]} 46... Ra6
{[%clk 0:00:18.4]} 47. Kd3 {[%clk 0:00:07.7]} 47... Nf4+ {[%clk 0:00:18.6]} 48.
Kc4 {[%clk 0:00:07.4]} 48... Nd5 {[%clk 0:00:13.6]} 49. Nd3 {[%clk 0:00:07.7]}
49... Kf7 {[%clk 0:00:11.9]} 50. Nxb4 {[%clk 0:00:08.2]} 50... Nf4 {[%clk
0:00:09.8]} 51. Nxa6 {[%clk 0:00:07.9]} 1-0

[Event "Late-Titled-Tuesday-Blitz-April-23-2024"]
[Site "Chess.com"]
[Date "2024.04.23"]
[Round "6"]
[White "Kratos031"]
[Black "zano2023"]
[Result "1/2-1/2"]
[WhiteElo "2463"]
[BlackElo "2170"]
[TimeControl "180+1"]
[EndTime "15:08:52 PDT"]
[Termination "Game drawn - insufficient material"]

1. d4 {[%clk 0:03:00.9]} 1... e5 {[%clk 0:02:57]} 2. dxe5 {[%clk 0:03:00.6]}
2... d6 {[%clk 0:02:57.7]} 3. Nf3 {[%clk 0:03:01.1]} 3... Bg4 {[%clk 0:02:56.8]}
4. e4 {[%clk 0:03:00.8]} 4... Nc6 {[%clk 0:02:53.5]} 5. Be2 {[%clk 0:03:00.2]}
5... dxe5 {[%clk 0:02:52]} 6. Qxd8+ {[%clk 0:02:56.5]} 6... Rxd8 {[%clk
0:02:52]} 7. c3 {[%clk 0:02:57.1]} 7... Nf6 {[%clk 0:02:50.9]} 8. Nbd2 {[%clk
0:02:54.4]} 8... a6 {[%clk 0:02:44.1]} 9. h3 {[%clk 0:02:54.7]} 9... Bxf3 {[%clk
0:02:36.3]} 10. Bxf3 {[%clk 0:02:53.7]} 10... Bc5 {[%clk 0:02:37]} 11. Nf1
{[%clk 0:02:53.1]} 11... O-O {[%clk 0:02:36.1]} 12. Ng3 {[%clk 0:02:52.9]} 12...
h6 {[%clk 0:02:33.7]} 13. Ke2 {[%clk 0:02:51.8]} 13... b5 {[%clk 0:02:30.6]} 14.
Be3 {[%clk 0:02:51.7]} 14... Bxe3 {[%clk 0:02:26.8]} 15. fxe3 {[%clk 0:02:51.7]}
15... Rd7 {[%clk 0:02:22.3]} 16. Rad1 {[%clk 0:02:48.9]} 16... Rfd8 {[%clk
0:02:22.8]} 17. Rxd7 {[%clk 0:02:48.6]} 17... Rxd7 {[%clk 0:02:23.7]} 18. Nf5
{[%clk 0:02:48.9]} 18... Kh7 {[%clk 0:02:21.8]} 19. Rf1 {[%clk 0:02:42.3]} 19...
g6 {[%clk 0:02:18.7]} 20. Ng3 {[%clk 0:02:42.4]} 20... Kg7 {[%clk 0:02:16.9]}
21. Bg4 {[%clk 0:02:31.9]} 21... Rd6 {[%clk 0:02:14.3]} 22. Rc1 {[%clk
0:02:24.1]} 22... Na5 {[%clk 0:02:12.3]} 23. b3 {[%clk 0:02:21.5]} 23... c5
{[%clk 0:02:09.8]} 24. Bf3 {[%clk 0:02:18.1]} 24... c4 {[%clk 0:02:09.1]} 25. b4
{[%clk 0:02:16.6]} 25... Nc6 {[%clk 0:02:00.9]} 26. Rd1 {[%clk 0:01:58.8]} 26...
Ne8 {[%clk 0:01:53.9]} 27. Bg4 {[%clk 0:01:53.5]} 27... Rxd1 {[%clk 0:01:43.4]}
28. Kxd1 {[%clk 0:01:54.4]} 28... Nd6 {[%clk 0:01:43.2]} 29. Bd7 {[%clk
0:01:50]} 29... Nb8 {[%clk 0:01:36.4]} 30. Bg4 {[%clk 0:01:49.5]} 30... h5
{[%clk 0:01:36.6]} 31. Bf3 {[%clk 0:01:49.6]} 31... Nd7 {[%clk 0:01:35.2]} 32.
h4 {[%clk 0:01:42.9]} 32... f6 {[%clk 0:01:23.7]} 33. Kc2 {[%clk 0:01:39.1]}
33... Kf7 {[%clk 0:01:22.1]} 34. Kb2 {[%clk 0:01:33.4]} 34... Nb6 {[%clk
0:01:20.3]} 35. Bd1 {[%clk 0:01:31.6]} 35... Ke6 {[%clk 0:01:10.8]} 36. Bc2
{[%clk 0:01:30.6]} 36... Nf7 {[%clk 0:01:06.7]} 37. a4 {[%clk 0:01:16.3]} 37...
Nh6 {[%clk 0:00:52.4]} 38. axb5 {[%clk 0:01:12.6]} 38... axb5 {[%clk 0:00:53.3]}
39. Bd1 {[%clk 0:01:11.8]} 39... Nc8 {[%clk 0:00:49.5]} 40. Kc2 {[%clk 0:01:11]}
40... Nd6 {[%clk 0:00:49.6]} 41. Kd2 {[%clk 0:01:10.4]} 41... f5 {[%clk
0:00:48.8]} 42. exf5+ {[%clk 0:01:02.9]} 42... Nhxf5 {[%clk 0:00:48.7]} 43. Nxf5
{[%clk 0:00:52.2]} 43... Nxf5 {[%clk 0:00:48.7]} 44. Bf3 {[%clk 0:00:51.6]}
44... Kd6 {[%clk 0:00:45.6]} 45. Be4 {[%clk 0:00:35.2]} 45... Nxh4 {[%clk
0:00:43.2]} 46. Ke2 {[%clk 0:00:35.4]} 46... Nf5 {[%clk 0:00:38.3]} 47. Kf3
{[%clk 0:00:34.1]} 47... Ne7 {[%clk 0:00:36.8]} 48. g4 {[%clk 0:00:31.1]} 48...
hxg4+ {[%clk 0:00:20.3]} 49. Kxg4 {[%clk 0:00:32]} 49... Nd5 {[%clk 0:00:19.9]}
50. Bxg6 {[%clk 0:00:26.9]} 50... Nxe3+ {[%clk 0:00:19.2]} 51. Kf3 {[%clk
0:00:26.7]} 51... Nd5 {[%clk 0:00:18.3]} 52. Be8 {[%clk 0:00:24.1]} 52... Nxc3
{[%clk 0:00:17.5]} 53. Ke3 {[%clk 0:00:20.6]} 53... Kd5 {[%clk 0:00:17.5]} 54.
Bf7+ {[%clk 0:00:19.8]} 54... Kd6 {[%clk 0:00:15.4]} 55. Be8 {[%clk 0:00:20.7]}
55... Na2 {[%clk 0:00:15]} 56. Bxb5 {[%clk 0:00:20.2]} 56... c3 {[%clk
0:00:15.2]} 57. Kd3 {[%clk 0:00:19.2]} 57... Nxb4+ {[%clk 0:00:15.8]} 58. Kxc3
{[%clk 0:00:19.1]} 58... Nd5+ {[%clk 0:00:15.9]} 59. Kd3 {[%clk 0:00:18.3]}
59... Kc5 {[%clk 0:00:16.4]} 60. Be8 {[%clk 0:00:17.8]} 60... Nf6 {[%clk
0:00:15.2]} 61. Bg6 {[%clk 0:00:17.2]} 61... Kd5 {[%clk 0:00:15]} 62. Ke2 {[%clk
0:00:17.5]} 62... e4 {[%clk 0:00:14.9]} 63. Bxe4+ {[%clk 0:00:17.6]} 1/2-1/2

[Event "Late-Titled-Tuesday-Blitz-April-23-2024"]
[Site "Chess.com"]
[Date "2024.04.23"]
[Round "6"]
[White "DonJuanEGenaro"]
[Black "chess_sharparchitect"]
[Result "0-1"]
[WhiteElo "2032"]
[BlackElo "2242"]
[TimeControl "180+1"]
[EndTime "15:08:54 PDT"]
[Termination "chess_sharparchitect won on time"]

1. d4 {[%clk 0:02:54.7]} 1... Nf6 {[%clk 0:02:59.6]} 2. Nf3 {[%clk 0:02:54]}
2... d5 {[%clk 0:02:58.3]} 3. c4 {[%clk 0:02:50.6]} 3... e6 {[%clk 0:02:57.9]}
4. Nc3 {[%clk 0:02:50.6]} 4... c6 {[%clk 0:02:57.6]} 5. e3 {[%clk 0:02:49.9]}
5... Nbd7 {[%clk 0:02:56.3]} 6. Bd3 {[%clk 0:02:49.6]} 6... dxc4 {[%clk
0:02:54.6]} 7. Bxc4 {[%clk 0:02:49]} 7... b5 {[%clk 0:02:55.2]} 8. Bb3 {[%clk
0:02:46.3]} 8... a5 {[%clk 0:02:53]} 9. a3 {[%clk 0:02:45.8]} 9... b4 {[%clk
0:02:44.8]} 10. axb4 {[%clk 0:02:44.4]} 10... Bxb4 {[%clk 0:02:43.9]} 11. O-O
{[%clk 0:02:43.3]} 11... Ba6 {[%clk 0:02:37.8]} 12. Re1 {[%clk 0:02:42.8]} 12...
O-O {[%clk 0:02:38.2]} 13. e4 {[%clk 0:02:41.6]} 13... c5 {[%clk 0:02:36.2]} 14.
d5 {[%clk 0:02:39.6]} 14... exd5 {[%clk 0:02:27.2]} 15. exd5 {[%clk 0:02:15.2]}
15... c4 {[%clk 0:02:10.2]} 16. Bc2 {[%clk 0:02:13.3]} 16... Nc5 {[%clk
0:02:09.1]} 17. Bg5 {[%clk 0:01:54.5]} 17... h6 {[%clk 0:01:55.6]} 18. Bh4
{[%clk 0:01:52.1]} 18... Bxc3 {[%clk 0:01:36.9]} 19. bxc3 {[%clk 0:01:51.3]}
19... Qxd5 {[%clk 0:01:36.6]} 20. Qxd5 {[%clk 0:01:38.1]} 20... Nxd5 {[%clk
0:01:36.3]} 21. Rxa5 {[%clk 0:01:37.6]} 21... Rfc8 {[%clk 0:01:05.5]} 22. Re5
{[%clk 0:01:34.4]} 22... Bb7 {[%clk 0:00:59.6]} 23. Rxa8 {[%clk 0:01:28]} 23...
Rxa8 {[%clk 0:00:57.6]} 24. h3 {[%clk 0:01:20.2]} 24... Nd3 {[%clk 0:00:55.8]}
25. Bxd3 {[%clk 0:01:15.2]} 25... cxd3 {[%clk 0:00:55.6]} 26. c4 {[%clk
0:01:03.2]} 26... Nf4 {[%clk 0:00:46.5]} 27. Nd2 {[%clk 0:00:55.2]} 27... Ra1+
{[%clk 0:00:40.7]} 28. Kh2 {[%clk 0:00:54.1]} 28... Nxg2 {[%clk 0:00:38.4]} 29.
Re8+ {[%clk 0:00:51.5]} 29... Kh7 {[%clk 0:00:37.8]} 30. Re7 {[%clk 0:00:51]}
30... Ba8 {[%clk 0:00:31.8]} 31. Rxf7 {[%clk 0:00:48.1]} 31... Nxh4 {[%clk
0:00:30.3]} 32. Rd7 {[%clk 0:00:44.9]} 32... Nf5 {[%clk 0:00:23.7]} 33. f3
{[%clk 0:00:44.7]} 33... Ra3 {[%clk 0:00:18.4]} 34. c5 {[%clk 0:00:38.9]} 34...
Bc6 {[%clk 0:00:17.5]} 35. Rc7 {[%clk 0:00:37.6]} 35... Ra6 {[%clk 0:00:16.7]}
36. Kg2 {[%clk 0:00:31.8]} 36... Kg6 {[%clk 0:00:15.8]} 37. Kf2 {[%clk
0:00:31.6]} 37... Bd5 {[%clk 0:00:13.8]} 38. Rd7 {[%clk 0:00:25.9]} 38... Bc6
{[%clk 0:00:12.5]} 39. Rc7 {[%clk 0:00:25.1]} 39... Bd5 {[%clk 0:00:12.7]} 40.
Rd7 {[%clk 0:00:24.9]} 40... Be6 {[%clk 0:00:13.3]} 41. Rxd3 {[%clk 0:00:22.3]}
41... Rc6 {[%clk 0:00:10.5]} 42. Rc3 {[%clk 0:00:21.8]} 42... Ne7 {[%clk
0:00:09.7]} 43. Ne4 {[%clk 0:00:18.9]} 43... Nd5 {[%clk 0:00:09.7]} 44. Rc2
{[%clk 0:00:18]} 44... Bxh3 {[%clk 0:00:09.7]} 45. Kg3 {[%clk 0:00:15.4]} 45...
Bf5 {[%clk 0:00:09.5]} 46. Rd2 {[%clk 0:00:12.7]} 46... Bxe4 {[%clk 0:00:07.1]}
47. fxe4 {[%clk 0:00:12.5]} 47... Ne7 {[%clk 0:00:07.7]} 48. Rd6+ {[%clk
0:00:10.9]} 48... Kf7 {[%clk 0:00:07.8]} 49. Rxc6 {[%clk 0:00:01.4]} 49... Nxc6
{[%clk 0:00:07.4]} 50. Kf4 {[%clk 0:00:01.4]} 50... Ke6 {[%clk 0:00:07.7]} 0-1

[Event "Late-Titled-Tuesday-Blitz-April-23-2024"]
[Site "Chess.com"]
[Date "2024.04.23"]
[Round "6"]
[White "Polish_fighter3000"]
[Black "ChristopherYoo"]
[Result "0-1"]
[WhiteElo "3108"]
[BlackElo "3005"]
[TimeControl "180+1"]
[EndTime "15:08:57 PDT"]
[Termination "ChristopherYoo won by checkmate"]

1. Nf3 {[%clk 0:03:00.9]} 1... Nf6 {[%clk 0:03:00.2]} 2. g3 {[%clk 0:03:00.2]}
2... b5 {[%clk 0:02:59.6]} 3. Bg2 {[%clk 0:02:56.5]} 3... Bb7 {[%clk 0:02:59.1]}
4. Na3 {[%clk 0:02:55.3]} 4... a6 {[%clk 0:02:55.8]} 5. c4 {[%clk 0:02:54.8]}
5... b4 {[%clk 0:02:55.5]} 6. Nc2 {[%clk 0:02:54.2]} 6... c5 {[%clk 0:02:55.8]}
7. O-O {[%clk 0:02:52]} 7... e6 {[%clk 0:02:55.6]} 8. d4 {[%clk 0:02:34.1]} 8...
cxd4 {[%clk 0:02:55.2]} 9. Ncxd4 {[%clk 0:02:32.4]} 9... Be7 {[%clk 0:02:49.4]}
10. b3 {[%clk 0:02:24.2]} 10... O-O {[%clk 0:02:48.8]} 11. Bb2 {[%clk
0:02:24.7]} 11... a5 {[%clk 0:02:45]} 12. Nb5 {[%clk 0:02:23.2]} 12... Na6
{[%clk 0:02:43.9]} 13. Nd6 {[%clk 0:02:15.9]} 13... Bc6 {[%clk 0:02:42]} 14. Qd4
{[%clk 0:02:16.3]} 14... Bxd6 {[%clk 0:02:08.6]} 15. Qxd6 {[%clk 0:02:15.7]}
15... Ne4 {[%clk 0:02:09.1]} 16. Qf4 {[%clk 0:02:01.5]} 16... Nec5 {[%clk
0:01:59.5]} 17. Rad1 {[%clk 0:01:53]} 17... f6 {[%clk 0:01:55.8]} 18. h4 {[%clk
0:01:37.8]} 18... Qe8 {[%clk 0:01:53]} 19. Bh3 {[%clk 0:01:28.8]} 19... a4
{[%clk 0:01:48.8]} 20. Qe3 {[%clk 0:01:26.5]} 20... e5 {[%clk 0:01:39.6]} 21.
Bf5 {[%clk 0:01:18.4]} 21... Qf7 {[%clk 0:00:59.6]} 22. Rd6 {[%clk 0:01:12.9]}
22... Nb7 {[%clk 0:00:57.3]} 23. Rd2 {[%clk 0:01:04]} 23... Nac5 {[%clk
0:00:54.8]} 24. Rfd1 {[%clk 0:01:01.4]} 24... axb3 {[%clk 0:00:51.5]} 25. axb3
{[%clk 0:01:02.3]} 25... Ra2 {[%clk 0:00:50.5]} 26. Bb1 {[%clk 0:00:45]} 26...
Ra6 {[%clk 0:00:49.7]} 27. Kh2 {[%clk 0:00:44.2]} 27... Rfa8 {[%clk 0:00:40.1]}
28. g4 {[%clk 0:00:33.9]} 28... Ne6 {[%clk 0:00:25.2]} 29. Rg1 {[%clk
0:00:31.7]} 29... d6 {[%clk 0:00:19.1]} 30. h5 {[%clk 0:00:07.6]} 30... g5
{[%clk 0:00:14.6]} 31. Rgd1 {[%clk 0:00:04.3]} 31... Qe7 {[%clk 0:00:07.9]} 32.
Ne1 {[%clk 0:00:04]} 32... Nf4 {[%clk 0:00:05.4]} 33. f3 {[%clk 0:00:02.9]}
33... Qe6 {[%clk 0:00:02.3]} 34. Nc2 {[%clk 0:00:02.3]} 34... Ra5 {[%clk
0:00:01.8]} 35. Nxb4 {[%clk 0:00:02.5]} 35... Be8 {[%clk 0:00:02.4]} 36. Nd5
{[%clk 0:00:02.5]} 36... Nxd5 {[%clk 0:00:01.4]} 37. Rxd5 {[%clk 0:00:03.4]}
37... Rxd5 {[%clk 0:00:01.4]} 38. Rxd5 {[%clk 0:00:04.1]} 38... Bc6 {[%clk
0:00:01.2]} 39. Rd1 {[%clk 0:00:03.1]} 39... Nc5 {[%clk 0:00:01.9]} 40. b4
{[%clk 0:00:03.3]} 40... Na4 {[%clk 0:00:02.4]} 41. b5 {[%clk 0:00:03.4]} 41...
Nxb2 {[%clk 0:00:02.4]} 42. bxc6 {[%clk 0:00:02.1]} 42... Nxd1 {[%clk
0:00:02.7]} 43. Qd2 {[%clk 0:00:02.6]} 43... Qxc4 {[%clk 0:00:02.3]} 44. Be4
{[%clk 0:00:02.6]} 44... Qd4 {[%clk 0:00:02.3]} 45. Qc2 {[%clk 0:00:01.8]} 45...
Qf2+ {[%clk 0:00:02.4]} 46. Kh3 {[%clk 0:00:02.1]} 46... Qf1+ {[%clk 0:00:03.1]}
47. Kh2 {[%clk 0:00:02.1]} 47... Qf2+ {[%clk 0:00:03.8]} 48. Kh3 {[%clk
0:00:02.6]} 48... Ne3 {[%clk 0:00:04.3]} 49. Qb3+ {[%clk 0:00:02.5]} 49... Kh8
{[%clk 0:00:04.8]} 50. f4 {[%clk 0:00:01.8]} 50... gxf4 {[%clk 0:00:04.4]} 51.
c7 {[%clk 0:00:01.5]} 51... Qg3# {[%clk 0:00:04.6]} 0-1